bitfinex/quotes_SOLUSD_20241220
["timestamp","ask_amount","ask_price","bid_price","bid_amount"]
[1734671137971,2.9651,195.15,195.01,13.58865827]
[1734671137972,23.776884,195.13,195.01,13.58865827]
[1734671138870,23.776884,195.13,195.09,25.16853345]
[1734671141874,23.776884,195.13,195.08,25.16853345]
[1734671142491,23.776884,195.11,195.06,25.16853345]
[1734671142796,0.96115972,195.1,195.06,25.16853345]
[1734671142996,23.776884,195.11,195.07,25.16853345]
[1734671143590,23.776884,195.11,195.06,25.16853345]
[1734671143591,0.96109213,195.1,195.06,25.16853345]
[1734671143780,0.96109213,195.1,195.0,28.43343345]
[1734671143781,0.96109213,195.1,195.04,25.16853345]
[1734671143983,0.96109213,195.1,195.0,3.2649]
[1734671143984,0.96109213,195.1,195.05,25.16853345]
[1734671144384,0.96109213,195.1,195.04,25.16853345]
[1734671144997,23.776884,195.09,195.03,25.16853345]
[1734671145204,24.73812889,195.09,195.03,25.16853345]
[1734671146299,0.96123474,195.08,195.03,25.16853345]
[1734671146483,23.776884,195.09,195.04,25.16853345]
[1734671147080,23.776884,195.07,195.02,25.16853345]
[1734671147282,0.9613423,195.06,195.0,25.16853345]
[1734671148399,25.16853345,195.14,195.05,25.16853345]
[1734671148609,0.96103366,195.13,195.07,25.16853345]
[1734671148994,26.12956711,195.13,195.06,25.16853345]
[1734671149688,0.96103366,195.13,195.06,25.16853345]
[1734671150400,23.776884,195.12,195.06,25.16853345]
[1734671150702,0.96112333,195.11,195.06,25.16853345]
[1734671152209,24.73799104,195.12,195.06,25.16853345]
[1734671152387,24.73799104,195.12,195.05,25.16853345]
[1734671153285,6.1042,195.18,195.07,25.16853345]
[1734671153286,25.16853345,195.14,195.07,25.16853345]
[1734671153484,23.776884,195.12,195.06,25.16853345]
[1734671154109,25.16853345,195.17,195.09,25.16853345]
[1734671154295,0.96089705,195.16,195.1,25.16853345]
[1734671154685,26.1294305,195.16,195.09,25.16853345]
[1734671154995,16.73292456,195.16,195.09,15.77202751]
[1734671155591,23.776884,195.15,195.09,15.77202751]
[1734671156412,2.9651,195.2,195.14,15.77202751]
[1734671156584,15.77202751,195.25,195.17,15.77202751]
[1734671156789,0.9604693,195.25,195.19,15.77202751]
[1734671157308,16.73249681,195.25,195.18,15.77202751]
[1734671157516,15.77202751,195.24,195.17,35.77202751]
[1734671157716,0.96051132,195.23,195.17,35.77202751]
[1734671158393,15.77202751,195.24,195.17,35.77202751]
[1734671158998,25.21430321,195.24,195.17,45.21430321]
[1734671159388,0.96049568,195.23,195.17,45.21430321]
[1734671159593,23.776884,195.23,195.17,45.21430321]
[1734671160507,0.96049574,195.29,195.22,25.21430321]
[1734671160708,0.96020934,195.32,195.27,25.21430321]
[1734671161007,1.57995997,195.34,195.27,25.21430321]
[1734671161411,25.21430321,195.29,195.22,25.21430321]
[1734671161609,26.17463233,195.28,195.21,25.21430321]
[1734671162192,26.17463233,195.28,195.2,25.21430321]
[1734671162393,23.776884,195.27,195.21,25.21430321]
[1734671162594,0.96036667,195.26,195.21,25.21430321]
[1734671163198,48.99118721,195.23,195.14,6.5158]
[1734671163394,48.99118721,195.21,195.14,25.21430321]
[1734671163591,25.21430321,195.16,195.06,12.816]
[1734671163798,25.21430321,195.16,195.09,25.21430321]
[1734671164005,26.1751589,195.17,195.09,25.21430321]
[1734671164218,23.776884,195.16,195.09,25.21430321]
[1734671164421,23.776884,195.16,195.1,25.21430321]
[1734671164634,23.776884,195.18,195.12,25.21430321]
[1734671164836,23.776884,195.18,195.13,25.21430321]
[1734671166213,0.96076541,195.17,195.1,25.21430321]
[1734671166413,25.21430321,195.15,195.08,25.21430321]
[1734671166603,23.776884,195.13,195.08,25.21430321]
[1734671166793,23.776884,195.16,195.11,25.21430321]
[1734671166991,0.96082651,195.17,195.11,25.21430321]
[1734671167194,25.21430321,195.15,195.06,12.8165]
[1734671167395,24.73781492,195.14,195.08,25.21430321]
[1734671167597,24.73781492,195.14,195.07,25.21430321]
[1734671167803,24.73781492,195.14,195.08,25.21430321]
[1734671168406,24.73781492,195.14,195.05,3.1922]
[1734671168608,49.95211813,195.14,195.06,25.21430321]
[1734671168812,24.73781492,195.14,195.09,25.21430321]
[1734671169013,23.776884,195.17,195.12,25.21430321]
[1734671169415,28.48820321,195.21,195.14,25.21430321]
[1734671169635,0.96070044,195.2,195.14,25.21430321]
[1734671170023,26.17500365,195.2,195.13,25.21430321]
[1734671170524,0.96070044,195.2,195.15,25.21430321]
[1734671170835,0.96070044,195.2,195.1,25.21430321]
[1734671170836,24.73749774,195.21,195.16,25.21430321]
[1734671171710,0.96061374,195.21,195.2,25.21430321]
[1734671171945,25.21430321,195.29,195.2,25.21430321]
[1734671172133,25.21430321,195.27,195.2,25.21430321]
[1734671172326,3.0556,195.31,195.16,25.21430321]
[1734671172327,25.21430321,195.23,195.16,25.21430321]
[1734671173319,25.21430321,195.23,195.14,3.1091]
[1734671173526,0.96057773,195.29,195.17,25.21430321]
[1734671173527,25.21430321,195.24,195.17,25.21430321]
[1734671173849,0.96053859,195.23,195.17,25.21430321]
[1734671174512,23.776884,195.2,195.14,45.21430321]
[1734671174917,23.776884,195.2,195.14,25.21430321]
[1734671174918,0.96068777,195.19,195.14,25.21430321]
[1734671175124,0.9607071,195.18,195.12,25.21430321]
[1734671175325,0.9607071,195.18,195.13,25.21430321]
[1734671175524,23.776884,195.18,195.13,25.21430321]
[1734671175930,27.6605915,195.33,195.1,6.3239]
[1734671175931,25.21430321,195.22,195.15,25.21430321]
[1734671176264,25.21430321,195.25,195.18,25.21430321]
[1734671176415,0.96045812,195.24,195.18,25.21430321]
[1734671176615,0.96045812,195.24,195.17,25.21430321]
[1734671177037,25.21430321,195.23,195.16,25.21430321]
[1734671177247,0.96065606,195.22,195.16,25.21430321]
[1734671177510,23.776884,195.22,195.16,25.21430321]
[1734671177858,23.776884,195.23,195.17,25.21430321]
[1734671178154,49.95170281,195.23,195.16,25.21430321]
[1734671178320,48.99118721,195.21,195.14,25.21430321]
[1734671178511,0.96066636,195.2,195.14,25.21430321]
[1734671179687,25.21430321,195.17,195.1,25.21430321]
[1734671179964,25.21430321,195.15,195.08,25.21430321]
[1734671180251,0.96099591,195.14,195.08,25.21430321]
[1734671180454,0.96099591,195.14,195.09,25.21430321]
[1734671180810,48.99118721,195.16,195.1,25.21430321]
[1734671180811,23.776884,195.16,195.1,25.21430321]
[1734671181018,23.776884,195.18,195.13,25.21430321]
[1734671181240,24.73759186,195.18,195.14,25.21430321]
[1734671181450,25.21430321,195.23,195.16,25.21430321]
[1734671181756,0.96059166,195.22,195.16,25.21430321]
[1734671184477,25.21430321,195.27,195.19,25.21430321]
[1734671184680,0.96058308,195.29,195.22,25.21430321]
[1734671186073,23.776884,195.28,195.22,25.21430321]
[1734671186274,48.99118721,195.26,195.19,25.21430321]
[1734671186474,0.9604328,195.25,195.19,25.21430321]
[1734671187073,23.776884,195.26,195.2,25.21430321]
[1734671187240,25.21430321,195.29,195.21,25.21430321]
[1734671187439,32.47366542,195.31,195.24,25.21430321]
[1734671187640,25.83419141,195.34,195.27,25.21430321]
[1734671187971,0.6198882,195.34,195.3,25.21430321]
[1734671189070,0.6198882,195.34,195.31,25.21430321]
[1734671190876,0.6198882,195.34,195.33,25.21430321]
[1734671191859,0.6198882,195.34,195.32,25.21430321]
[1734671192060,0.6198882,195.34,195.31,25.21430321]
[1734671192261,0.6198882,195.34,195.3,25.21430321]
[1734671192458,0.6198882,195.34,195.29,25.21430321]
[1734671192679,23.776884,195.33,195.26,25.21430321]
[1734671192963,49.9512145,195.33,195.26,25.21430321]
[1734671193487,24.73691129,195.33,195.27,25.21430321]
[1734671194088,24.73688278,195.33,195.26,25.21430321]
[1734671194260,23.776884,195.33,195.26,25.21430321]
[1734671194462,24.73689169,195.33,195.26,25.21430321]
[1734671195086,25.83419141,195.34,195.31,25.21430321]
[1734671195087,0.6198882,195.34,195.31,25.21430321]
[1734671196887,0.6198882,195.34,195.27,0.76801747]
[1734671197088,25.83419141,195.34,195.26,25.21430321]
[1734671197389,0.96005474,195.33,195.26,25.21430321]
[1734671197588,0.96005474,195.33,195.28,25.21430321]
[1734671197768,0.6198882,195.34,195.32,25.21430321]
[1734671199066,0.6198882,195.34,195.27,0.76802617]
[1734671199067,0.6198882,195.34,195.33,25.21430321]
[1734671199271,8.82e-05,195.34,195.33,25.21430321]
[1734671199469,8.82e-05,195.34,195.33,25.98186908]
[1734671199674,8.82e-05,195.34,195.33,28.93596908]
[1734671200670,25.21430321,195.52,195.38,23.776884]
[1734671200877,26.17364012,195.53,195.46,25.21430321]
[1734671201566,25.21430321,195.52,195.45,25.21430321]
[1734671201767,26.17346857,195.51,195.44,25.21430321]
[1734671202275,25.21430321,195.49,195.41,25.21430321]
[1734671202587,25.21430321,195.48,195.41,25.21430321]
[1734671202984,0.95930305,195.47,195.41,25.21430321]
[1734671203372,25.21430321,195.48,195.41,25.21430321]
[1734671203689,0.95931773,195.47,195.41,25.21430321]
[1734671203896,0.95932219,195.46,195.4,25.21430321]
[1734671204188,26.1736254,195.46,195.34,0.76752299]
[1734671204393,25.21430321,195.45,195.38,25.21430321]
[1734671204778,25.21430321,195.45,195.39,25.21430321]
[1734671205403,25.21430321,195.46,195.39,25.21430321]
[1734671206009,26.17370409,195.45,195.39,25.21430321]
[1734671206208,26.17370409,195.45,195.37,25.21430321]
[1734671206209,25.21430321,195.44,195.37,25.21430321]
[1734671206509,23.776884,195.43,195.37,25.21430321]
[1734671206683,25.21430321,195.41,195.35,25.21430321]
[1734671206889,0.95962686,195.4,195.34,25.21430321]
[1734671207098,25.21430321,195.39,195.32,25.21430321]
[1734671207300,26.17406942,195.38,195.31,25.21430321]
[1734671207712,25.21430321,195.37,195.3,25.21430321]
[1734671207912,25.21430321,195.36,195.3,25.21430321]
[1734671208098,26.17416019,195.35,195.28,25.21430321]
[1734671208808,25.21430321,195.3,195.23,25.21430321]
[1734671209017,26.17451814,195.29,195.22,25.21430321]
[1734671209190,23.776884,195.27,195.21,25.21430321]
[1734671209390,25.21430321,195.26,195.19,25.21430321]
[1734671209714,26.17466743,195.26,195.19,25.21430321]
[1734671210088,48.99118721,195.25,195.17,25.21430321]
[1734671210306,25.21430321,195.22,195.15,25.21430321]
[1734671210492,26.174899,195.21,195.14,25.21430321]
[1734671211412,25.21430321,195.21,195.14,25.21430321]
[1734671211599,25.21430321,195.18,195.11,25.21430321]
[1734671212003,0.96078397,195.17,195.11,25.21430321]
[1734671212505,25.21430321,195.14,195.07,25.21430321]
[1734671212709,25.21430321,195.11,195.05,25.21430321]
[1734671213302,26.17536324,195.1,194.99,12.8209]
[1734671213501,25.21430321,195.07,195.01,25.21430321]
[1734671213711,26.17562784,195.06,194.99,25.21430321]
[1734671214214,26.17562784,195.06,194.92,7.4205597]
[1734671214215,48.99118721,195.04,194.96,25.21430321]
[1734671214410,25.21430321,195.02,194.95,25.21430321]
[1734671215221,0.96157781,195.01,194.95,25.21430321]
[1734671215522,26.17590735,195.02,194.95,25.21430321]
[1734671216619,25.21430321,195.0,194.92,25.21430321]
[1734671216916,25.21430321,194.96,194.89,25.21430321]
[1734671217298,25.21430321,194.98,194.9,25.21430321]
[1734671217498,25.21430321,194.98,194.91,25.21430321]
[1734671217735,23.776884,194.96,194.9,25.21430321]
[1734671217909,0.96191094,194.95,194.88,25.21430321]
[1734671218097,48.99118721,194.96,194.89,25.21430321]
[1734671218406,25.21430321,194.98,194.91,25.21430321]
[1734671218799,0.96176764,194.97,194.91,25.21430321]
[1734671218995,0.96176764,194.97,194.9,25.21430321]
[1734671219208,25.21430321,195.01,194.94,25.21430321]
[1734671219417,0.96162171,195.0,194.94,25.21430321]
[1734671219622,23.776884,194.99,194.92,25.21430321]
[1734671219797,26.17592492,195.0,194.93,25.21430321]
[1734671220328,0.96165275,195.02,194.95,25.21430321]
[1734671220822,26.17595596,195.02,194.95,25.21430321]
[1734671221402,25.21430321,195.04,194.96,25.21430321]
[1734671221609,0.96150821,195.03,194.97,25.21430321]
[1734671221821,0.96150629,195.09,195.02,25.21430321]
[1734671222005,0.96120452,195.11,195.05,25.21430321]
[1734671222210,25.21430321,195.13,195.06,25.21430321]
[1734671222404,0.96104972,195.13,195.07,25.21430321]
[1734671222609,3.1195,195.19,195.09,25.21430321]
[1734671222610,25.21430321,195.16,195.09,25.21430321]
[1734671223019,0.96088469,195.15,195.08,25.21430321]
[1734671223224,26.1751879,195.15,195.08,25.21430321]
[1734671223540,3.1195,195.19,195.12,25.21430321]
[1734671223541,26.17520942,195.19,195.12,25.21430321]
[1734671223725,0.96090621,195.19,195.13,25.21430321]
[1734671224927,25.21430321,195.2,195.13,25.21430321]
[1734671225132,0.96069289,195.19,195.13,25.21430321]
[1734671225435,0.96069289,195.19,195.08,25.21430321]
[1734671225436,25.21430321,195.15,195.08,25.21430321]
[1734671225599,25.21430321,195.17,195.1,25.21430321]
[1734671225804,0.96074806,195.16,195.1,25.21430321]
[1734671226331,25.21430321,195.16,195.09,25.21430321]
[1734671226532,25.21430321,195.17,195.1,25.21430321]
[1734671227228,25.21430321,195.18,195.11,25.21430321]
[1734671227443,25.21430321,195.19,195.12,25.21430321]
[1734671227744,0.96070302,195.18,195.11,25.21430321]
[1734671227945,25.21430321,195.15,195.08,25.21430321]
[1734671228323,25.21430321,195.17,195.1,25.21430321]
[1734671228522,25.21430321,195.18,195.11,25.21430321]
[1734671228821,25.21430321,195.19,195.12,25.21430321]
[1734671229022,0.96075014,195.18,195.12,25.21430321]
[1734671229436,24.73763559,195.18,195.12,25.21430321]
[1734671229736,25.21430321,195.19,195.12,25.21430321]
[1734671229929,25.21430321,195.21,195.14,25.21430321]
[1734671230241,25.21430321,195.17,195.1,25.21430321]
[1734671230549,25.21430321,195.13,195.06,25.21430321]
[1734671230715,26.17535501,195.12,195.05,25.21430321]
[1734671230921,25.21430321,195.14,195.07,25.21430321]
[1734671231233,25.21430321,195.17,195.1,25.21430321]
[1734671231429,25.21430321,195.18,195.11,25.21430321]
[1734671231631,26.1750726,195.17,195.1,25.21430321]
[1734671231814,25.21430321,195.17,195.1,25.21430321]
[1734671232017,25.21430321,195.2,195.13,25.21430321]
[1734671232241,0.96067939,195.19,195.13,25.21430321]
[1734671232547,25.21430321,195.18,195.11,25.21430321]
[1734671232731,25.21430321,195.16,195.09,25.21430321]
[1734671232930,0.96094141,195.15,195.09,25.21430321]
[1734671233332,25.21430321,195.17,195.1,25.21430321]
[1734671233543,0.96084162,195.16,195.1,25.21430321]
[1734671233728,24.73772973,195.16,195.1,25.21430321]
[1734671234142,0.96084573,195.16,195.11,25.21430321]
[1734671234347,25.21430321,195.18,195.11,25.21430321]
[1734671234524,0.96078078,195.17,195.11,25.21430321]
[1734671234724,23.776884,195.16,195.1,25.21430321]
[1734671234930,0.96091084,195.15,195.1,25.21430321]
[1734671235242,24.73779751,195.16,195.1,25.21430321]
[1734671235645,49.95210072,195.16,195.09,25.21430321]
[1734671235850,49.95210072,195.16,195.0,25.21430321]
[1734671235851,23.776884,195.13,195.07,25.21430321]
[1734671236057,0.96109469,195.12,195.05,25.21430321]
[1734671236357,0.96109469,195.12,195.06,25.21430321]
[1734671236737,0.96101435,195.12,195.06,25.21430321]
[1734671237655,48.99118721,195.11,195.04,25.21430321]
[1734671237844,25.21430321,195.09,195.02,25.21430321]
[1734671238044,0.96126413,195.08,195.02,25.21430321]
[1734671238532,0.96123911,195.08,195.02,25.21430321]
[1734671239555,0.96125844,195.09,195.02,25.21430321]
[1734671240455,0.96127053,195.1,195.04,25.21430321]
[1734671240832,48.99118721,195.11,195.04,25.21430321]
[1734671241036,25.21430321,195.13,195.06,25.21430321]
[1734671241259,23.776884,195.13,195.06,25.21430321]
[1734671241461,24.73789806,195.13,195.06,25.21430321]
[1734671241640,49.95220127,195.13,195.06,25.21430321]
[1734671242639,25.21430321,195.12,195.05,25.21430321]
[1734671242840,26.1754765,195.11,195.04,25.21430321]
[1734671243040,23.776884,195.1,195.03,25.21430321]
[1734671243269,0.96123419,195.09,195.03,25.21430321]
[1734671243557,48.99118721,195.08,195.01,25.21430321]
[1734671243775,48.99118721,195.06,194.99,25.21430321]
[1734671243980,25.21430321,195.03,194.96,25.21430321]
[1734671244137,0.96155799,195.02,194.96,25.21430321]
[1734671244339,0.96155799,195.02,194.95,25.21430321]
[1734671244540,25.21430321,195.01,194.94,25.21430321]
[1734671244742,23.776884,194.99,194.92,25.21430321]
[1734671244947,48.99118721,194.97,194.9,25.21430321]
[1734671245163,0.96188418,194.96,194.9,25.21430321]
[1734671245369,26.17618739,194.96,194.89,25.21430321]
[1734671245665,48.99118721,194.95,194.87,25.21430321]
[1734671245839,25.21430321,194.9,194.83,25.21430321]
[1734671246043,25.21430321,194.88,194.81,25.21430321]
[1734671246245,0.96228976,194.87,194.8,25.21430321]
[1734671246655,25.21430321,194.85,194.78,25.21430321]
[1734671246859,49.9536267,194.85,194.76,25.21430321]
[1734671247252,49.9536267,194.85,194.75,25.21430321]
[1734671247458,49.9536267,194.85,194.74,25.21430321]
[1734671247744,49.9536267,194.85,194.72,25.21430321]
[1734671248269,49.9536267,194.85,194.74,25.21430321]
[1734671248962,49.9536267,194.85,194.76,25.21430321]
[1734671249184,24.73932349,194.85,194.79,25.21430321]
[1734671249471,48.99118721,194.85,194.77,25.21430321]
[1734671249769,23.776884,194.85,194.78,25.21430321]
[1734671249962,22.3296,194.91,194.81,25.21430321]
[1734671249963,25.21430321,194.88,194.81,25.21430321]
[1734671250147,0.96229495,194.87,194.82,25.21430321]
[1734671250666,25.21430321,194.85,194.78,25.21430321]
[1734671250868,0.96229495,194.87,194.8,25.21430321]
[1734671250869,26.17659816,194.87,194.8,25.21430321]
[1734671251675,26.17659816,194.87,194.7,25.21430321]
[1734671251676,48.99118721,194.85,194.77,25.21430321]
[1734671251973,49.95373233,194.85,194.76,25.21430321]
[1734671252153,48.99118721,194.85,194.75,25.21430321]
[1734671252359,48.99118721,194.85,194.74,25.21430321]
[1734671252659,48.99118721,194.85,194.73,25.21430321]
[1734671253649,48.99118721,194.85,194.72,45.21430321]
[1734671254157,23.776884,194.79,194.73,25.21430321]
[1734671254465,24.73958347,194.79,194.73,25.21430321]
[1734671254861,20.0,194.86,194.69,10.77017661]
[1734671255061,12.8278,194.89,194.69,10.77017661]
[1734671255062,26.17688035,194.85,194.77,25.21430321]
[1734671255468,25.21430321,194.83,194.75,25.21430321]
[1734671255761,20.0,194.87,194.77,25.21430321]
[1734671255946,25.21430321,194.85,194.78,25.21430321]
[1734671256150,0.96242273,194.86,194.79,25.21430321]
[1734671256350,25.21430321,194.85,194.78,25.21430321]
[1734671256588,25.21430321,194.9,194.76,25.21430321]
[1734671256589,25.21430321,194.83,194.76,25.21430321]
[1734671257076,25.21430321,194.85,194.77,25.21430321]
[1734671257278,26.17676022,194.84,194.77,25.21430321]
[1734671257565,25.21430321,194.85,194.78,25.21430321]
[1734671257771,25.21430321,194.87,194.8,25.21430321]
[1734671257993,0.9623726,194.86,194.8,25.21430321]
[1734671258690,25.21430321,194.88,194.81,25.21430321]
[1734671259171,19.314,194.96,194.76,0.76981641]
[1734671259172,25.21430321,194.93,194.85,25.21430321]
[1734671259367,0.9620931,194.92,194.86,25.21430321]
[1734671259567,25.21430321,194.9,194.83,25.21430321]
[1734671259873,25.21430321,194.91,194.84,25.21430321]
[1734671260085,25.21430321,194.92,194.85,25.21430321]
[1734671260284,26.1764289,194.91,194.84,24.71430321]
[1734671260496,0.96212569,194.91,194.84,24.71430321]
[1734671260655,26.17639535,194.92,194.84,24.71430321]
[1734671260855,25.21430321,194.93,194.86,25.21430321]
[1734671261188,26.1763263,194.95,194.88,25.21430321]
[1734671261382,0.96202309,194.95,194.88,25.21430321]
[1734671261750,25.21430321,194.93,194.86,25.21430321]
[1734671261988,25.21430321,194.94,194.87,25.21430321]
[1734671262203,0.96197923,194.93,194.87,25.21430321]
[1734671262677,26.17628244,194.93,194.86,25.21430321]
[1734671263071,23.776884,194.93,194.87,25.21430321]
[1734671263460,0.96195754,194.92,194.86,25.21430321]
[1734671263662,23.776884,194.93,194.87,25.21430321]
[1734671263856,24.73886004,194.93,194.87,25.21430321]
[1734671264056,23.776884,194.93,194.87,23.71430321]
[1734671264290,0.96197052,194.92,194.87,23.71430321]
[1734671264767,24.73892773,194.93,194.87,23.71430321]
[1734671264996,23.776884,194.93,194.87,23.71430321]
[1734671265518,25.21430321,194.98,194.9,25.21430321]
[1734671265814,0.96180443,194.97,194.91,25.21430321]
[1734671266013,25.21430321,194.99,194.91,25.21430321]
[1734671266188,25.21430321,195.02,194.94,25.21430321]
[1734671266396,25.21430321,195.02,194.92,0.76933149]
[1734671266397,25.21430321,195.03,194.96,25.21430321]
[1734671266615,0.9615557,195.02,194.96,25.21430321]
[1734671266906,26.17586108,195.06,194.99,25.21430321]
[1734671267198,0.96137924,195.09,195.03,25.21430321]
[1734671267698,26.17568245,195.09,195.02,25.21430321]
[1734671268003,25.21430321,195.14,195.07,25.21430321]
[1734671268184,26.17534513,195.16,195.08,25.21430321]
[1734671268796,26.17534513,195.16,195.09,25.21430321]
[1734671269001,25.21430321,195.18,195.11,25.21430321]
[1734671269203,0.96082482,195.17,195.11,25.21430321]
[1734671269720,26.17512803,195.17,195.1,25.21430321]
[1734671270007,25.21430321,195.16,195.09,25.21430321]
[1734671270207,0.96097315,195.15,195.09,25.21430321]
[1734671270791,23.776884,195.15,195.1,25.21430321]
[1734671271099,0.9608823,195.16,195.1,25.21430321]
[1734671271300,26.17518551,195.16,195.08,45.21430321]
[1734671271486,26.17518551,195.16,195.09,25.21430321]
[1734671271681,3.195,195.21,195.1,25.21430321]
[1734671271682,25.21430321,195.17,195.1,25.21430321]
[1734671271883,25.21430321,195.18,195.11,25.21430321]
[1734671272085,25.21430321,195.2,195.12,25.21430321]
[1734671272289,0.96073327,195.19,195.12,25.21430321]
[1734671272592,0.96073327,195.19,195.13,25.21430321]
[1734671273200,0.9607228,195.2,195.13,25.21430321]
[1734671274110,25.21430321,195.19,195.12,25.21430321]
[1734671274407,25.21430321,195.2,195.12,25.21430321]
[1734671274582,0.96072417,195.19,195.12,25.21430321]
[1734671276004,25.21430321,195.2,195.13,25.21430321]
[1734671276309,0.96068418,195.19,195.12,25.21430321]
[1734671277405,25.21430321,195.22,195.14,25.21430321]
[1734671277594,0.9606611,195.21,195.14,25.21430321]
[1734671277792,26.17496431,195.21,195.14,25.21430321]
[1734671278316,23.776884,195.2,195.12,25.21430321]
[1734671278522,26.17509418,195.19,195.11,25.21430321]
[1734671278688,23.776884,195.18,195.11,25.21430321]
[1734671279010,25.21430321,195.15,195.08,25.21430321]
[1734671279219,0.96096587,195.14,195.08,25.21430321]
[1734671279386,0.96096587,195.14,195.07,25.21430321]
[1734671280107,26.17526908,195.14,195.07,25.21430321]
[1734671280305,0.96096587,195.14,195.07,25.21430321]
[1734671280611,26.17530472,195.15,195.08,25.21430321]
[1734671281621,26.17530472,195.15,195.07,25.21430321]
[1734671282414,26.17530472,195.15,195.06,25.21430321]
[1734671282415,23.776884,195.13,195.06,25.21430321]
[1734671282619,23.776884,195.13,195.01,0.76876068]
[1734671282620,25.21430321,195.1,195.03,25.21430321]
[1734671282918,25.21430321,195.12,195.05,25.21430321]
[1734671283125,25.21430321,195.14,195.07,25.21430321]
[1734671283700,23.776884,195.15,195.09,25.21430321]
[1734671284314,0.96089311,195.14,195.08,25.21430321]
[1734671285219,48.99118721,195.13,195.06,25.21430321]
[1734671285427,26.1754097,195.12,195.05,25.21430321]
[1734671285906,25.21430321,195.1,195.03,25.21430321]
[1734671286105,0.96122724,195.09,195.03,25.21430321]
[1734671286719,0.96121673,195.1,195.04,25.21430321]
[1734671286917,25.21430321,195.14,195.07,25.21430321]
[1734671287122,23.776884,195.13,195.07,25.21430321]
[1734671287320,24.73787436,195.13,195.07,25.21430321]
[1734671287523,49.95217757,195.13,195.06,25.21430321]
[1734671288023,49.95217757,195.13,195.05,25.21430321]
[1734671288320,25.21430321,195.08,195.01,25.21430321]
[1734671288510,23.6416383,195.1,194.98,25.21430321]
[1734671288511,25.21430321,195.06,194.98,25.21430321]
[1734671288711,26.17575295,195.05,194.98,25.21430321]
[1734671288904,25.21430321,195.03,194.95,25.21430321]
[1734671289099,26.17593779,195.02,194.95,25.21430321]
[1734671289824,0.96163458,195.02,194.95,25.21430321]
[1734671290020,25.21430321,195.04,194.97,25.21430321]
[1734671290234,23.776884,195.04,194.98,25.21430321]
[1734671290413,25.21430321,195.07,194.99,25.21430321]
[1734671290737,23.776884,195.05,194.99,25.21430321]
[1734671291023,25.21430321,195.08,195.01,25.21430321]
[1734671291196,26.17560181,195.1,195.03,25.21430321]
[1734671291395,26.17560181,195.1,194.92,23.902374]
[1734671291396,26.17560181,195.1,195.02,25.21430321]
[1734671291704,25.21430321,195.06,194.98,25.21430321]
[1734671292020,25.21430321,195.04,194.97,25.21430321]
[1734671292220,0.96149154,195.03,194.97,25.21430321]
[1734671293523,25.21430321,195.05,194.98,25.21430321]
[1734671293729,25.21430321,195.1,194.94,20.0]
[1734671293730,24.7383244,195.04,194.99,25.21430321]
[1734671294038,24.7383244,195.04,194.98,25.21430321]
[1734671296635,49.95262761,195.04,194.97,25.21430321]
[1734671296943,25.21430321,195.02,194.95,25.21430321]
[1734671297142,26.17592358,195.01,194.93,25.21430321]
[1734671297326,26.17592358,195.01,194.94,25.21430321]
[1734671297523,23.776884,194.97,194.9,25.21430321]
[1734671297730,26.1761726,194.96,194.88,25.21430321]
[1734671298129,0.96186939,194.96,194.9,25.21430321]
[1734671298658,25.21430321,194.99,194.92,25.21430321]
[1734671298845,25.21430321,195.0,194.93,25.21430321]
[1734671299039,25.21430321,195.02,194.95,25.21430321]
[1734671299438,0.9615849,195.01,194.95,25.21430321]
[1734671299744,25.21430321,195.04,194.97,25.21430321]
[1734671300117,25.21430321,195.05,194.97,25.21430321]
[1734671300337,0.96146691,195.04,194.97,25.21430321]
[1734671300545,26.17577012,195.04,194.97,25.21430321]
[1734671301243,25.21430321,195.03,194.96,25.21430321]
[1734671301433,0.96161253,195.02,194.95,25.21430321]
[1734671302045,0.96161253,195.02,194.96,25.21430321]
[1734671302239,26.17591574,195.02,194.95,25.21430321]
[1734671302441,25.21430321,195.01,194.94,25.21430321]
[1734671302637,0.96160649,195.0,194.94,25.21430321]
[1734671302841,26.1759097,195.0,194.93,25.21430321]
[1734671303140,25.21430321,194.99,194.92,25.21430321]
[1734671303444,0.96174982,194.98,194.92,25.21430321]
[1734671303744,0.96174982,194.98,194.91,25.21430321]
[1734671303919,25.21430321,194.97,194.9,25.21430321]
[1734671304120,0.96186089,194.96,194.89,25.21430321]
[1734671304439,25.21430321,194.92,194.85,31.25430321]
[1734671304635,0.96209368,194.91,194.85,25.21430321]
[1734671305047,0.96209368,194.91,194.84,25.21430321]
[1734671305048,26.17639689,194.91,194.84,25.21430321]
[1734671305342,25.21430321,194.9,194.83,25.21430321]
[1734671305537,0.96220083,194.89,194.83,25.21430321]
[1734671306044,25.21430321,194.9,194.83,25.21430321]
[1734671306220,25.21430321,194.91,194.84,25.21430321]
[1734671306425,0.96211687,194.9,194.84,25.21430321]
[1734671309047,0.96211687,194.9,194.83,25.21430321]
[1734671309561,48.99118721,194.93,194.85,25.21430321]
[1734671309724,25.21430321,194.95,194.88,25.21430321]
[1734671309928,25.21430321,194.96,194.89,25.21430321]
[1734671310133,0.96186441,194.95,194.89,25.21430321]
[1734671310331,26.17618745,194.96,194.89,25.21430321]
[1734671310552,32.35884291,194.98,194.91,25.21430321]
[1734671310737,25.21430321,194.97,194.9,25.21430321]